fUST/lending_fUST_20251213
["ID","MTS","AMOUNT","RATE_DAILY","PERIOD"]
[398395719,1765596281099,150.0,8.514e-05,2]
[398395720,1765596281501,150.0,8.841e-05,2]
[398395721,1765596281924,169.55,9.169e-05,2]
[398395722,1765596282450,190.75,9.496e-05,2]
[398395723,1765596282881,211.94,9.824e-05,2]
[398395724,1765596388919,268.1304061,0.00012563,2]
[398395725,1765596426144,-268.1304061,0.00017112,2]
[398395726,1765596426165,-211.58014558,0.00019919,2]
[398395727,1765596426186,-150.0,0.00020915,2]
[398395728,1765596426206,-260.03263298,0.00021661,2]
[398395729,1765596427076,-8.09777312,0.00021661,2]
[398395730,1765596427096,-376.23323067,0.00022589,10]
[398395731,1765596441111,-189.89929915,0.00019132,2]
[398395732,1765596443079,-30.14911879,0.00019132,2]
[398395733,1765596443097,-470.0,0.00022589,10]
[398395734,1765596443117,-177.0,0.00022915,2]
[398395735,1765596443135,-179.44312064,0.00024152,2]
[398395799,1765596638205,-211.79998242,0.00019709,2]
[398395800,1765596638215,-108.99811487,0.0002,120]
[398395801,1765596638226,-391.00188513,0.0002,120]
[398395802,1765596638235,-352.0,0.00024152,10]
[398395803,1765596638245,-21.48074476,0.00024152,2]
[398395804,1765596638254,-150.0,0.00024405,2]
[398395805,1765596638263,-150.0,0.00024658,2]
[398395806,1765596638272,-250.0,0.00025205,2]
[398395807,1765596638282,-179.87408814,0.00025729,2]
[398395808,1765596638291,-350.0,0.00025753,2]
[398395809,1765596638301,-1648.35498509,0.00026,30]
[398395810,1765596638310,-268.1304061,0.0002621,2]
[398395811,1765596638319,-888.0,0.00026233,2]
[398395812,1765596638329,-195.0,0.00026233,2]
[398395813,1765596638339,-500.0,0.00026244,2]
[398395814,1765596638347,-626.20615326,0.00026244,2]
[398395815,1765596638356,-176.58738167,0.00026244,2]
[398395816,1765596638366,-300.0,0.00026244,2]
[398395817,1765596638375,-300.0,0.00026244,2]
[398395818,1765596638385,-1200.0,0.00026244,2]
[398395820,1765596638394,-17863.62661855,0.00026245,2]
[398395821,1765596638407,-25362.73239811,0.00026245,2]
[398395822,1765596638416,-284.0,0.00026245,2]
[398395824,1765596638426,-1200.0,0.00026246,7]
[398395826,1765596638436,-450.0,0.00026301,2]
[398395828,1765596638445,-1000.0,0.00026444,30]
[398395830,1765596638456,-888.0,0.00026781,2]
[398395832,1765596638465,-673.31504569,0.00026849,2]
[398395834,1765596638476,-3815.33790707,0.00026952,2]
[398395836,1765596638486,-153.34565878,0.00027,10]
[398395838,1765596638495,-2470.54092053,0.00027019,2]
[398395840,1765596638504,-2797.6,0.0002708,3]
[398395842,1765596638513,-8392.77,0.0002709,3]
[398395844,1765596638523,-2000.0,0.00027179,2]
[398395846,1765596638532,-323.49752693,0.000272,2]
[398395848,1765596638542,-888.0,0.00027329,2]
[398395850,1765596638551,-1200.0,0.00027342,7]
[398395852,1765596638560,-170.81,0.00027369,16]
[398395854,1765596638570,-7522.65,0.0002737,10]
[398395856,1765596638580,-5752.3735359,0.0002737,10]
[398395915,1765596639150,-516.5064641,0.0002737,10]
[398395917,1765596639160,-5224.07,0.0002737,10]
[398395919,1765596639169,-356.28741675,0.00027379,2]
[398395921,1765596639179,-62237.17418573,0.0002738,2]
[398395923,1765596639190,-2023.562296,0.0002738,2]
[398395926,1765596639205,-362.75262753,0.0002738,2]
[398395928,1765596639217,-538.362,0.0002738,2]
[398395930,1765596639228,-3201.12021055,0.0002738,2]
[398396004,1765596640584,-14436.7431375,0.0002738,2]
[398396015,1765596643414,-585.5673309,0.0002737,10]
[398396016,1765596643425,-604.0,0.0002737,10]
[398396017,1765596643436,-3163.8226691,0.0002737,10]
[398396018,1765596643446,-25182.48608064,0.0002738,2]
[398396019,1765596646384,-600.99999999,0.0002738,2]
[398396020,1765596646396,-6287.30558188,0.0002738,2]
[398396021,1765596646441,-264.0,0.0002738,10]
[398396022,1765596646450,-7977.92674159,0.0002738,2]
[398396027,1765596665724,150.0,8.74e-05,2]
[398396028,1765596666124,150.0,9.157e-05,2]
[398396029,1765596666555,150.0,9.573e-05,2]
[398396030,1765596667004,150.0,9.989e-05,2]
[398396031,1765596673112,251.5415972,0.00012563,2]
[398396032,1765596673185,169.10513002,9.277e-05,2]
[398396033,1765596689147,251.34631435,0.00012563,2]
[398396034,1765596689358,169.20365868,9.277e-05,2]
[398396035,1765596713116,251.34611907,0.00012017,2]
[398396036,1765596713193,169.20375722,8.873e-05,2]
[398396037,1765596720878,200000.0,0.00018,99]
[398396038,1765596731077,200.44,8.664e-05,2]
[398396039,1765596731465,400.88,9.076e-05,2]
[398396040,1765596731881,601.33,9.489e-05,2]
[398396041,1765596732321,801.77,9.902e-05,2]
[398396042,1765596732751,1002.21,0.00010314,2]
[398396043,1765596733166,1202.65,0.00010727,2]
[398396044,1765596733574,1403.09,0.00011139,2]
[398396045,1765596733987,1603.54,0.00011552,2]
[398396046,1765596734387,1803.98,0.00011964,2]
[398396047,1765596734796,2004.42,0.00012377,2]
[398396048,1765596806992,150.0,8.705e-05,2]
[398396049,1765596807547,150.0,9.12e-05,2]
[398396050,1765596807982,180.4,9.535e-05,2]
[398396051,1765596808374,240.53,9.949e-05,2]
[398396052,1765596808769,300.66,0.00010364,2]
[398396053,1765596809210,360.79,0.00010778,2]
[398396054,1765596809626,420.93,0.00011193,2]
[398396055,1765596810049,481.06,0.00011607,2]
[398396056,1765596810441,541.19,0.00012022,2]
[398396057,1765596810834,601.32,0.00012436,2]
[398396058,1765596882117,150.0,7.039e-05,2]
[398396059,1765596882505,150.0,7.375e-05,2]
[398396060,1765596882921,150.0,7.71e-05,2]
[398396061,1765596883318,150.0,8.045e-05,2]
[398396062,1765596883704,150.0,8.38e-05,2]
[398396063,1765596884090,150.0,8.715e-05,2]
[398396064,1765596884506,150.0,9.051e-05,2]
[398396065,1765596885152,150.0,9.386e-05,2]
[398396066,1765597292102,355.24845044,0.00012563,2]
[398396067,1765597332355,150.0,7.011e-05,2]
[398396068,1765597332405,150.0,7.345e-05,2]
[398396069,1765597366683,3000.0,0.00015,2]
[398396070,1765597397576,150.0,6.848e-05,2]
[398396079,1765597705685,202.96437757,9.277e-05,2]
[398396080,1765597706340,202.96437757,0.00013787,2]
[398396083,1765597784843,795.134183,0.00013699,2]
[398396102,1765597832435,-355.24845044,0.00016921,2]
[398396104,1765597832445,-354.30762381,0.00016921,2]
[398396106,1765597832456,-312.69237619,0.00016921,2]
[398396108,1765597832466,-150.0,0.00017565,2]
[398396110,1765597832476,-202.96437757,0.00018297,2]
[398396112,1765597832486,-177.0,0.00019565,2]
[398396114,1765597832495,-500.0,0.0002,2]
[398396117,1765597832512,-500.0,0.0002,2]
[398396120,1765597832524,-795.134183,0.00020187,2]
[398396123,1765597832533,-355.24845044,0.00021279,2]
[398396126,1765597832542,-204.0,0.00021564,2]
[398396129,1765597832552,-789.5,0.00022589,10]
[398396132,1765597832562,-202.96437757,0.00022806,2]
[398396135,1765597832572,-1000.0,0.00023,2]
[398396138,1765597832581,-150.0,0.00023564,2]
[398396141,1765597832591,-1923.9252343,0.00023753,2]
[398396144,1765597832600,-172.258759,0.00024221,2]
[398396147,1765597832610,-172.258759,0.00024221,120]
[398396150,1765597832619,-174.0,0.000243,7]
[398396154,1765597832629,-355.24845044,0.00025637,2]
[398396157,1765597832639,-300.0,0.00025651,2]
[398396160,1765597832648,-2470.54092053,0.00025652,2]
[398396163,1765597832658,-179.87408814,0.00025729,2]
[398396165,1765597832667,-2470.54092053,0.0002576,2]
[398396193,1765597832912,-596.0,0.00026,7]
[398396195,1765597832921,-1200.0,0.00026246,7]
[398396197,1765597832935,-2470.54092053,0.00026248,2]
[398396199,1765597832944,-888.0,0.00026251,2]
[398396201,1765597832954,-2000.0,0.00026443,3]
[398396203,1765597832964,-596.0,0.00026526,7]
[398396205,1765597832974,-2470.54092053,0.00026559,2]
[398396207,1765597832983,-175.08710731,0.000266,19]
[398396209,1765597832993,-795.134183,0.00026676,2]
[398396211,1765597833002,-202.361,0.00026704,14]
[398396213,1765597833011,-180.66136269,0.00026704,14]
[398396215,1765597833021,-888.0,0.00026799,2]
[398396218,1765597833031,-596.0,0.000268,7]
[398396219,1765597833040,-2470.54092053,0.00026835,2]
[398396221,1765597833051,-153.0,0.00026849,2]
[398396223,1765597833061,-2470.54092053,0.00026906,2]
[398396226,1765597833071,-1199.01,0.0002697,3]
[398396228,1765597833080,-3596.88,0.0002698,3]
[398396230,1765597833091,-500.0,0.00027072,2]
[398396232,1765597833101,-500.0,0.00027072,2]
[398396234,1765597833110,-500.0,0.00027072,2]
[398396236,1765597833120,-500.0,0.00027072,2]
[398396238,1765597833130,-156.66967847,0.00027072,2]
[398396240,1765597833139,-500.0,0.00027072,2]
[398396242,1765597833149,-500.0,0.00027072,2]
[398396244,1765597833158,-500.0,0.00027072,2]
[398396246,1765597833168,-500.0,0.00027072,2]
[398396248,1765597833177,-488.66783995,0.00027072,2]
[398396250,1765597833187,-171.12684968,0.00027072,2]
[398396252,1765597833195,-418.58553793,0.00027072,2]
[398396253,1765597833205,-185.68076107,0.00027072,2]
[398396255,1765597833214,-596.0,0.00027074,7]
[398396257,1765597833223,-11918.8611911,0.00027074,2]
[398396258,1765597833234,-1724.8736568,0.00027074,2]
[398396259,1765597833244,-1198.96,0.00027079,3]
[398396260,1765597833253,-2000.0,0.00027089,3]
[398396261,1765597833263,-1194.7034274,0.00027123,2]
[398396262,1765597833276,-748.4258971,0.00027123,2]
[398396263,1765597833286,-367.4863995,0.00027245,2]
[398396264,1765597833295,-214.3977202,0.00027245,2]
[398396265,1765597833306,-857.59088081,0.00027245,2]
[398396266,1765597833316,-1929.57948181,0.00027245,2]
[398396267,1765597833326,-249.40119173,0.00027269,2]
[398396268,1765597833337,-42712.62510916,0.0002727,2]
[398396269,1765597833351,-534.64380724,0.0002727,2]
[398396279,1765597838493,-574.12855637,0.00026251,2]
[398396281,1765597838503,-115.86375448,0.00026799,2]
[398396282,1765597838515,-479.50755848,0.00026799,2]
[398396283,1765597838524,-57.49244152,0.0002726,10]
[398396284,1765597838546,-3570.32755848,0.0002726,10]
[398396285,1765597838556,-7170.23279795,0.0002727,2]
[398396286,1765597838567,-5481.78766297,0.0002727,2]
[398396287,1765597840594,-4638.2567345,0.0002727,2]
[398396289,1765597840647,-2719.71263287,0.0002727,2]
[398396291,1765597840660,-9156.633293,0.0002727,2]
[398396295,1765597840702,-25849.42175035,0.0002727,2]
[398396305,1765597843565,-21681.91201027,0.0002727,2]
[398396306,1765597843576,-5465.64002953,0.0002727,2]
[398396307,1765597843617,-1037.32843795,0.0002727,2]
[398396308,1765597843724,-11874.6777346,0.0002727,2]
[398396309,1765597843734,-264.05081361,0.0002727,2]
[398396310,1765597843746,-23493.2860514,0.0002727,2]
[398396324,1765597846491,-879.9514622,0.0002727,2]
[398396328,1765597873228,202.85130415,8.873e-05,2]
[398396329,1765597897149,201.62848856,0.00012017,2]
[398396330,1765597897195,202.54689665,8.873e-05,2]
[398396331,1765597905213,202.54659224,8.873e-05,2]
[398396332,1765597905774,201.23811521,0.00012017,2]
[398396333,1765597909150,150.0,9.402e-05,2]
[398396334,1765597909561,234.03,9.85e-05,2]
[398396335,1765597910165,351.05,0.00010298,2]
[398396336,1765597910557,468.06,0.00010745,2]
[398396337,1765597910967,585.08,0.00011193,2]
[398396338,1765597911368,702.09,0.00011641,2]
[398396339,1765597911767,819.11,0.00012089,2]
[398396340,1765597912191,936.13,0.00012536,2]
[398396341,1765597912589,1053.14,0.00012984,2]
[398396342,1765597912977,1170.16,0.00013432,2]
[398396343,1765597961590,159.0,0.00014,10]
[398396345,1765597985593,150.0,7.944e-05,2]
[398396346,1765597986491,150.0,8.322e-05,2]
[398396347,1765597986905,150.0,8.7e-05,2]
[398396348,1765597987309,150.0,9.079e-05,2]
[398396349,1765597987700,173.42,9.457e-05,2]
[398396350,1765597988126,208.11,9.835e-05,2]
[398396351,1765597988535,242.79,0.00010213,2]
[398396352,1765597988974,277.48,0.00010592,2]
[398396353,1765597989600,312.16,0.0001097,2]
[398396354,1765597989769,346.85,0.00011348,2]
[398396355,1765598056122,150.0,8.123e-05,2]
[398396356,1765598056511,150.0,8.51e-05,2]
[398396357,1765598056911,150.0,8.897e-05,2]
[398396360,1765598491082,232.18995178,0.00012563,2]
[398396374,1765598786550,265.99570323,0.00012563,2]
[398396375,1765598818092,-313.72046547,0.00016653,2]
[398396376,1765598844115,-30.1594069,0.00016653,2]
[398396377,1765598844136,-666.0,0.00016821,2]
[398396378,1765598844155,-150.0,0.00016821,2]
[398396379,1765598844175,-206.95094669,0.00016821,2]
[398396380,1765598844195,-221.12790215,0.00017185,2]
[398396381,1765598852110,-11.06204963,0.00017185,2]
[398396382,1765598852130,-231.0,0.00018821,2]
[398396383,1765598852151,-57.23159059,0.00020657,2]
[398396384,1765598903682,270.34776922,9.277e-05,2]
[398396408,1765599031572,-270.34776922,0.00018954,2]
[398396410,1765599031581,-33.0671362,0.00018954,2]
[398396518,1765599037696,-669.9328638,0.00018954,2]
[398396519,1765599037706,-150.0,0.00019806,2]
[398396520,1765599037715,-208.76411264,0.00020657,2]
[398396521,1765599037724,-300.0,0.00020912,2]
[398396522,1765599037733,-691.84203372,0.00020913,2]
[398396523,1765599037744,-739.69517309,0.00020913,2]
[398396524,1765599037755,-14008.02008609,0.00020913,2]
[398396525,1765599037765,-1754.0,0.00021,2]
[398396526,1765599037774,-493.7627524,0.00021126,2]
[398396527,1765599037783,-1000.0,0.00021344,2]
[398396528,1765599037793,-232.18995178,0.00021807,2]
[398396529,1765599037802,-420.0,0.0002275,2]
[398396530,1765599037811,-587.0,0.00024749,2]
[398396531,1765599037820,-2099.43,0.00024978,10]
[398396532,1765599037829,-500.0,0.00024987,2]
[398396533,1765599037839,-332.75463236,0.00024987,2]
[398396534,1765599037848,-500.0,0.00024987,2]
[398396535,1765599037858,-349.19369085,0.00024987,2]
[398396536,1765599037868,-400.4323735,0.00024987,2]
[398396537,1765599037877,-500.0,0.00024987,2]
[398396538,1765599037886,-164.0761684,0.00024987,2]
[398396539,1765599037895,-500.0,0.00024987,2]
[398396540,1765599037904,-257.1107435,0.00024987,2]
[398396541,1765599037913,-74672.99057329,0.00024988,2]
[398396591,1765599080680,181.44631796,0.00012563,2]
[398396592,1765599088191,180.4614073,9.277e-05,2]
[398396593,1765599089143,181.22883719,0.00012563,2]
[398396594,1765599139596,150.0,6.923e-05,2]
[398396595,1765599139975,150.0,7.253e-05,2]
[398396596,1765599140376,150.0,7.583e-05,2]
[398396597,1765599140800,150.0,7.912e-05,2]
[398396598,1765599141226,181.59,8.242e-05,2]
[398396599,1765599141633,217.91,8.572e-05,2]
[398396600,1765599142047,254.23,8.901e-05,2]
[398396601,1765599142446,290.54,9.231e-05,2]
[398396602,1765599142865,326.86,9.561e-05,2]
[398396603,1765599143251,363.18,9.891e-05,2]
[398396604,1765599170142,3000.0,0.00015,2]
[398396605,1765599210988,150.0,6.977e-05,2]
[398396606,1765599211390,150.0,7.309e-05,2]
[398396607,1765599211790,150.0,7.641e-05,2]
[398396608,1765599212200,150.0,7.974e-05,2]
[398396609,1765599362471,3000.0,0.00015,2]
[398396610,1765599692807,218.59235154,0.00012563,2]
[398396611,1765599803694,210.47358757,9.277e-05,2]
[398396613,1765599986505,178.87961737,0.00012563,2]
[398396614,1765600029117,-856.59223943,0.00016,2]
[398396615,1765600038079,-384.33100379,0.00016,2]
[398396616,1765600040104,-928.19269177,0.00016,2]
[398396617,1765600041109,-200.83873325,0.00016,2]
[398396618,1765600100357,215.80637991,9.277e-05,2]
[398396620,1765600113260,482.92538511,0.00015,2]
[398396647,1765600231742,-29.04533176,0.00016,2]
[398396649,1765600231752,-150.0,0.00016152,2]
[398396651,1765600231761,-177.86083737,0.00016606,2]
[398396653,1765600231772,-40.73151417,0.00016606,2]
[398396655,1765600231782,-210.47358757,0.00017721,2]
[398396657,1765600231791,-177.0,0.00018151,2]
[398396659,1765600231800,-156.0,0.00019205,3]
[398396661,1765600231809,-204.0,0.00020151,2]
[398396663,1765600231819,-178.87961737,0.00020644,2]
[398396665,1765600231828,-54.44629166,0.00020649,2]
[398396667,1765600231843,-164.14605988,0.00020649,2]
[398396669,1765600231852,-231.0,0.00022151,2]
[398396672,1765600231861,-300.0,0.00022752,2]
[398396674,1765600231871,-2156.0,0.00022753,2]
[398396676,1765600231880,-1360.0,0.00022753,2]
[398396677,1765600231890,-631.0,0.00022753,2]
[398396680,1765600231899,-845.5,0.00023194,10]
[398396682,1765600231908,-312.35394012,0.00024432,2]
[398396684,1765600231920,-348.46010345,0.00024432,2]
[398396686,1765600231929,-176.60746929,0.00024432,2]
[398396688,1765600231941,-3253.75605393,0.00024432,2]
[398396691,1765600231954,-5354.58306203,0.00024432,2]
[398396692,1765600231963,-484.21737345,0.00024448,2]
[398396695,1765600231972,-396.36553315,0.00024448,2]
[398396697,1765600231982,-1585.46213258,0.00024448,2]
[398396699,1765600231991,-3567.28979831,0.00024448,2]
[398396701,1765600232001,-2470.54092053,0.00024461,2]
[398396703,1765600232010,-218.59235154,0.00024692,2]
[398396705,1765600232020,-420.0,0.00024705,2]
[398396707,1765600232030,-20.19721699,0.00024774,2]
[398396815,1765600237843,-1145.50912231,0.00024774,2]
[398396816,1765600237852,-194.50733269,0.00024922,2]
[398396817,1765600237898,-677.42648617,0.00024922,2]
[398396880,1765600243695,-311.0,0.00024922,2]
[398396881,1765600243711,-1287.60710167,0.00024922,2]
[398396882,1765600243725,-2000.0,0.00024977,3]
[398396883,1765600243738,-2673.28,0.0002498,10]
[398396884,1765600243752,-500.0,0.00024987,2]
[398396885,1765600243766,-500.0,0.00024987,2]
[398396886,1765600243779,-500.0,0.00024987,2]
[398396887,1765600243793,-500.0,0.00024987,3]
[398396888,1765600243806,-500.0,0.00024987,4]
[398396889,1765600243819,-500.0,0.00024987,5]
[398396890,1765600243832,-2000.0,0.00024987,2]
[398396891,1765600243845,-10727.9042167,0.00024988,2]
[398396893,1765600245900,-1867.46975075,0.00024889,2]
[398396895,1765600248625,217.6989145,0.00012563,2]
[398396896,1765600296543,150.0,6.968e-05,2]
[398396897,1765600296933,150.0,7.299e-05,2]
[398396898,1765600297320,150.0,7.631e-05,2]
[398396899,1765600297734,150.0,7.963e-05,2]
[398396902,1765601003070,232.55554303,9.277e-05,2]
[398396903,1765601086536,10000.0,0.00019,120]
[398396922,1765601300958,4699.76,0.00019,120]
[398397049,1765601402478,675.864055,0.00013699,2]
[398397050,1765601431952,-675.0,0.00017376,2]
[398397051,1765601431962,-150.0,0.00017868,2]
[398397052,1765601431972,-97.53060898,0.00018999,3]
[398397053,1765601431984,-1902.46939102,0.00018999,3]
[398397054,1765601431994,-232.55554303,0.00019006,2]
[398397055,1765601432004,-171.0,0.00019342,3]
[398397056,1765601432013,-168.00303659,0.00019868,2]
[398397057,1765601432023,-675.864055,0.00020187,2]
[398397058,1765601432032,-415.0,0.00023283,2]
[398397059,1765601432041,-300.0,0.00023989,2]
[398397060,1765601432051,-185.0051008,0.0002399,2]
[398397061,1765601432060,-3098.592716,0.0002399,2]
[398397062,1765601432069,-500.0,0.00024447,2]
[398397063,1765601432079,-380.0,0.00024658,2]
[398397064,1765601432088,-500.0,0.00024738,2]
[398397065,1765601432098,-496.0,0.00024738,2]
[398397066,1765601432107,-500.69863996,0.00024875,2]
[398397067,1765601432117,-496.0,0.00024875,2]
[398397068,1765601432126,-2000.0,0.00024979,3]
[398397069,1765601432135,-2227.73,0.0002498,10]
[398397070,1765601432144,-2000.0,0.00024986,3]
[398397071,1765601432153,-2000.0,0.00024986,3]
[398397072,1765601432162,-2000.0,0.00024986,3]
[398397073,1765601432173,-500.0,0.00024987,7]
[398397074,1765601432182,-500.0,0.00024987,7]
[398397075,1765601432193,-885.27176688,0.00024987,2]
[398397076,1765601432204,-1114.72823312,0.00024987,2]
[398397077,1765601432213,-1173.30343288,0.00024988,2]
[398397078,1765601432224,-379.5190505,0.00024988,2]
[398397250,1765601437973,-151.0,0.00024738,2]
[398397251,1765601437983,-500.0,0.00024738,2]
[398397252,1765601437992,-500.0,0.00024875,2]
[398397253,1765601438002,-1856.45,0.0002498,10]
[398397254,1765601438011,-38545.60800752,0.00024988,2]
[398397255,1765601438021,-500.0,0.00024989,7]
[398397256,1765601438031,-500.0,0.00024989,7]
[398397257,1765601438040,-500.0,0.00024989,2]
[398397258,1765601438049,-500.0,0.00024989,3]
[398397259,1765601438059,-500.0,0.00024989,4]
[398397260,1765601438068,-500.0,0.00024989,5]
[398397261,1765601438077,-237.74845695,0.00024989,2]
[398397262,1765601438087,-40098.4304909,0.0002499,2]
[398397263,1765601438097,-500.72442662,0.00024996,7]
[398397264,1765601438107,-500.0,0.00024997,6]
[398397265,1765601438116,-500.0,0.00024997,7]
[398397266,1765601438125,-500.0,0.00024997,8]
[398397267,1765601438135,-500.0,0.00024997,9]
[398397268,1765601438144,-117214.15230842,0.00024998,2]
[398397269,1765601438154,-363.253205,0.00024998,7]
[398397270,1765601438163,-363.253205,0.00024998,7]
[398397271,1765601438173,-363.253205,0.00024998,7]
[398397272,1765601438182,-363.253205,0.00024998,7]
[398397273,1765601438192,-151.0,0.00024998,7]
[398397274,1765601438202,-151.0,0.00024998,7]
[398397275,1765601438212,-151.0,0.00024998,7]
[398397276,1765601438221,-508.48403085,0.00025,2]
[398397277,1765601438231,-189.39,0.00025,5]
[398397278,1765601438240,-618.24,0.00025,14]
[398397279,1765601438250,-14884.32,0.00025,2]
[398397280,1765601438262,-1003.32,0.00025,2]
[398397281,1765601438272,-151.0,0.00025,7]
[398397282,1765601438281,-363.253205,0.00025,7]
[398397283,1765601438291,-363.253205,0.00025,7]
[398397284,1765601438301,-363.253205,0.00025,7]
[398397285,1765601438311,-363.253205,0.00025,7]
[398397286,1765601438322,-151.0,0.00025,7]
[398397287,1765601438331,-151.0,0.00025,7]
[398397288,1765601438340,-151.0,0.00025,7]
[398397289,1765601438350,-151.0,0.00025,7]
[398397290,1765601438360,-496.0,0.00025012,2]
[398397291,1765601438369,-496.0,0.00025149,2]
[398397292,1765601438379,-205.7051094,0.00025151,2]
[398397293,1765601438388,-192.5119955,0.00025151,2]
[398397294,1765601438397,-192.5119955,0.00025151,2]
[398397295,1765601438406,-496.0,0.00025286,2]
[398397296,1765601438416,-574.12855637,0.0002541,2]
[398397297,1765601438425,-888.0,0.0002541,2]
[398397298,1765601438435,-496.0,0.00025423,2]
[398397299,1765601438446,-152.86124353,0.0002545,2]
[398397300,1765601438456,-714.2385592,0.00025479,2]
[398397301,1765601438466,-496.0,0.0002556,2]
[398397302,1765601438476,-496.0,0.00025697,2]
[398397303,1765601438485,-496.0,0.00025834,2]
[398397304,1765601438495,-595.37131296,0.00025958,2]
[398397305,1765601438504,-888.0,0.00025958,2]
[398397306,1765601438515,-496.0,0.00025971,2]
[398397307,1765601438524,-345.985,0.00026,12]
[398397308,1765601438533,-420.0,0.00026015,2]
[398397309,1765601438543,-496.0,0.00026108,2]
[398397310,1765601438552,-496.0,0.00026245,2]
[398397311,1765601438561,-1100.0,0.00026246,7]
[398397312,1765601438571,-363.253205,0.00026301,7]
[398397313,1765601438581,-363.253205,0.00026301,7]
[398397314,1765601438591,-363.253205,0.00026301,7]
[398397315,1765601438600,-363.253205,0.00026301,7]
[398397316,1765601438610,-151.0,0.00026301,7]
[398397317,1765601438619,-151.0,0.00026301,7]
[398397318,1765601438628,-151.0,0.00026301,7]
[398397319,1765601438638,-269.37532653,0.00026301,7]
[398397320,1765601438647,-192.5119955,0.00026301,2]
[398397321,1765601438656,-192.5119955,0.00026301,2]
[398397322,1765601438665,-192.5119955,0.00026301,2]
[398397323,1765601438675,-192.5119955,0.00026301,2]
[398397324,1765601438684,-194.7419885,0.00026301,2]
[398397325,1765601438694,-192.5119955,0.00026301,2]
[398397326,1765601438703,-192.5119955,0.00026301,2]
[398397327,1765601438712,-496.0,0.00026382,2]
[398397328,1765601438722,-617.40005154,0.00026506,2]
[398397329,1765601438731,-888.0,0.00026506,2]
[398397330,1765601438746,-496.0,0.00026519,2]
[398397331,1765601438755,-496.0,0.00026656,2]
[398397332,1765601438765,-675.864055,0.00026676,2]
[398397333,1765601438774,-450.7558857,0.00026712,2]
[398397334,1765601438783,-496.0,0.00026793,2]
[398397335,1765601438793,-192.5119955,0.00026795,2]
[398397336,1765601438803,-192.5119955,0.00026795,2]
[398397337,1765601438813,-192.5119955,0.00026795,2]
[398397338,1765601438822,-192.5119955,0.00026795,2]
[398397339,1765601438831,-192.5119955,0.00026795,2]
[398397340,1765601438841,-192.5119955,0.00026795,2]
[398397341,1765601438851,-193.4626496,0.00026795,2]
[398397342,1765601438862,-192.5119955,0.00026795,2]
[398397343,1765601438871,-192.5119955,0.00026795,2]
[398397344,1765601438880,-384.1049518,0.00026795,2]
[398397345,1765601438890,-496.0,0.0002693,2]
[398397346,1765601438899,-40098.4304909,0.00026947,2]
[398397347,1765601438909,-150.79517714,0.0002698,30]
[398397348,1765601438919,-640.24385345,0.00027054,2]
[398397349,1765601438929,-496.0,0.00027067,2]
[398397350,1765601438938,-192.5119955,0.00027123,2]
[398397351,1765601438948,-363.253205,0.0002719,7]
[398397352,1765601438957,-363.253205,0.0002719,7]
[398397353,1765601438967,-363.253205,0.0002719,7]
[398397354,1765601438977,-363.253205,0.0002719,7]
[398397355,1765601438987,-151.0,0.0002719,7]
[398397356,1765601438997,-151.0,0.0002719,7]
[398397357,1765601439007,-151.0,0.0002719,7]
[398397358,1765601439018,-618.24,0.000272,14]
[398397359,1765601439028,-14884.32,0.000272,2]
[398397360,1765601439038,-496.0,0.00027204,2]
[398397361,1765601439048,-500.82618673,0.0002727,2]
[398397362,1765601439058,-5000.0,0.00027318,2]